lending/lending_fUSD_20260330
["ID","MTS","AMOUNT","RATE_DAILY","PERIOD"]
[419087295,1774857039917,-1220.76427927,0.00016,2]
[419087347,1774857040292,-509.07155412,0.00016,2]
[419087350,1774857040304,-641.3636,0.00016,2]
[419087447,1774857041054,-1392.15338006,0.00013448,2]
[419087449,1774857041064,-90.09661994,0.00016,2]
[419087468,1774857043550,-2287.19878015,0.00014561,2]
[419087469,1774857043796,-327.365286,0.00014561,2]
[419087470,1774857043809,-344.0,0.00014561,2]
[419087471,1774857043821,-807.43593385,0.00014561,2]
[419087472,1774857043832,-2621.4622749,0.00015948,2]
[419087473,1774857043943,-316.220239,0.00015948,2]
[419087474,1774857043958,-10397.0593066,0.00015948,2]
[419087475,1774857043968,-7757.50967768,0.00016,2]
[419087476,1774857043985,-2229.31833347,0.00016,2]
[419087506,1774857045970,-1392.15338006,0.00014265,2]
[419087507,1774857045981,-26908.66396424,0.00016,2]
[419087508,1774857046015,-340404.15516802,0.00016,2]
[419087509,1774857046368,-10626.8,0.00016,2]
[419087510,1774857046523,-12906.22436429,0.00016,2]
[419087513,1774857052580,498.90211514,8.497e-05,2]
[419087514,1774857052627,1074.99402984,8.497e-05,2]
[419087515,1774857067824,2239.94,8.389e-05,2]
[419087516,1774857068144,1600.01,7.945e-05,2]
[419087517,1774857068353,2570.0,8.504e-05,2]
[419087518,1774857070753,215.0,8.497e-05,3]
[419087519,1774857106958,264.5178,8.397e-05,2]
[419087520,1774857127322,204.0,8.397e-05,3]
[419087521,1774857130100,3325.5422,8.397e-05,2]
[419087522,1774857130128,10000.01,8.397e-05,2]
[419087523,1774857130156,10000.01,8.397e-05,2]
[419087524,1774857130185,10000.01,8.397e-05,2]
[419087525,1774857130214,10000.01,8.397e-05,2]
[419087526,1774857130242,10000.01,8.397e-05,2]
[419087527,1774857130270,10000.01,8.397e-05,2]
[419087528,1774857130299,10000.01,8.397e-05,2]
[419087529,1774857130327,10000.01,8.397e-05,2]
[419087530,1774857130355,10000.01,8.397e-05,2]
[419087531,1774857130386,658593.91136319,8.397e-05,2]
[419087532,1774857130425,546917.14613681,8.397e-05,2]
[419087533,1774857141146,450.78,8.162e-05,2]
[419087534,1774857143068,2640.39,5.895e-05,2]
[419087535,1774857143266,2640.39,6.206e-05,2]
[419087536,1774857143454,2640.39,6.516e-05,2]
[419087537,1774857143657,1628.06,6.826e-05,2]
[419087538,1774857143683,1012.33,6.826e-05,2]
[419087539,1774857143846,2640.39,7.137e-05,2]
[419087540,1774857144052,2640.39,7.447e-05,2]
[419087541,1774857144238,2640.39,7.757e-05,2]
[419087542,1774857144435,1066.51,8.067e-05,2]
[419087543,1774857144461,1573.88,8.067e-05,2]
[419087544,1774857144841,2640.39,8.378e-05,2]
[419087545,1774857159080,10000.01,8.397e-05,2]
[419087546,1774857159114,1360.3911,8.397e-05,2]
[419087547,1774857176373,2434.5483,8.397e-05,2]
[419087548,1774857186866,194.0,8.397e-05,3]
[419087549,1774857202916,800.0,8.083e-05,2]
[419087550,1774857247250,184.0,8.083e-05,3]
[419087551,1774857271493,414.8311,8.397e-05,2]
[419087552,1774857305923,175.0,8.397e-05,3]
[419087553,1774857307507,163.0,8.397e-05,3]
[419087554,1774857366479,166.0,8.397e-05,3]
[419087555,1774857427221,167.0,8.397e-05,3]
[419087556,1774857450084,-2391.28,8.569e-05,2]
[419087557,1774857458275,-4918.09,8.572e-05,2]
[419087558,1774857458302,-250.0,8.574e-05,2]
[419087559,1774857458330,-1800.0,8.58e-05,2]
[419087560,1774857458357,-250.0,8.649e-05,2]
[419087561,1774857458383,-5395.63,8.649e-05,2]
[419087562,1774857493597,157.0,8.397e-05,3]
[419087563,1774857509209,623.63,8.429e-05,2]
[419087564,1774857521913,165.0,6.69e-05,2]
[419087565,1774857522117,154.0,6.69e-05,2]
[419087566,1774857522338,154.0,6.69e-05,2]
[419087567,1774857522719,154.0,6.69e-05,2]
[419087568,1774857522910,154.0,6.69e-05,2]
[419087569,1774857522985,154.0,6.69e-05,2]
[419087570,1774857523194,154.0,6.69e-05,2]
[419087571,1774857523404,154.0,6.69e-05,2]
[419087572,1774857523638,154.0,6.69e-05,2]
[419087573,1774857523846,154.0,6.69e-05,2]
[419087574,1774857524099,154.0,6.69e-05,2]
[419087575,1774857524311,154.0,6.69e-05,2]
[419087576,1774857524523,154.0,6.69e-05,2]
[419087577,1774857525613,154.0,6.69e-05,2]
[419087578,1774857545164,157.0,8.397e-05,3]
[419087579,1774857552891,1673.36,8e-05,2]
[419087580,1774857570852,881.14,6.455e-05,2]
[419087581,1774857572082,288.78,7.077e-05,2]
[419087582,1774857574878,737.12,7.679e-05,2]
[419087583,1774857605387,157.0,8.397e-05,3]
[419087584,1774857666865,157.0,8.397e-05,3]
[419087585,1774857726816,157.0,8.397e-05,3]
[419087586,1774857788953,157.0,8.397e-05,3]
[419087588,1774857849253,158.0,8.397e-05,3]
[419087590,1774857901353,1200.0,8.518e-05,2]
[419087591,1774857901433,300.0,8.518e-05,2]
[419087592,1774857927169,1025.01,7.984e-05,2]
[419087593,1774857965652,-300.0,8.519e-05,2]
[419087594,1774857965677,-300.0,8.519e-05,2]
[419087595,1774857965702,-300.0,8.519e-05,2]
[419087596,1774857965728,-100.0,8.519e-05,2]
[419087597,1774857967163,-1000.0,8.519e-05,2]
[419087598,1774857968246,-1000.0,8.519e-05,2]
[419087599,1774857969347,-947.98883886,8.519e-05,2]
[419087600,1774857969372,-52.01116114,8.52e-05,2]
[419087601,1774857970587,-162.0,8.519e-05,2]
[419087602,1774857970611,-197.98883886,8.52e-05,2]
[419087603,1774857970636,-640.01116114,8.52e-05,2]
[419087604,1774857970896,158.0,8.397e-05,3]
[419087605,1774857971757,-1000.0,8.52e-05,2]
[419087606,1774857973141,-1000.0,8.52e-05,2]
[419087607,1774857974103,-1000.0,8.52e-05,2]
[419087608,1774857977774,-500.0,8.52e-05,2]
[419087609,1774857984654,1135.325396,7.945e-05,2]
[419087610,1774857991735,150.0,8.5e-05,2]
[419087611,1774858017300,442.274604,8.02e-05,2]
[419087612,1774858017328,923.005396,8.02e-05,2]
[419087613,1774858017811,2700.0,8.071e-05,2]
[419087614,1774858018329,1558.2,8.158e-05,2]
[419087615,1774858018853,2200.0,8.28e-05,2]
[419087616,1774858019672,1800.0,8.362e-05,2]
[419087617,1774858020201,818.804604,8.344e-05,2]
[419087618,1774858020230,281.195396,8.344e-05,2]
[419087619,1774858021113,1600.0,8.474e-05,2]
[419087620,1774858027490,158.0,8.397e-05,3]
[419087621,1774858028121,8118.814604,7.945e-05,2]
[419087622,1774858028146,10000.01,7.945e-05,2]
[419087623,1774858028172,533.897907,7.945e-05,2]
[419087624,1774858057664,8715.20358405,8e-05,2]
[419087625,1774858081843,200.0,8.2e-05,2]
[419087626,1774858084874,158.0,8e-05,3]
[419087627,1774858089107,396.63,7.767e-05,2]
[419087628,1774858089622,154.27850895,7.897e-05,2]
[419087629,1774858089653,445.72149105,7.897e-05,2]
[419087630,1774858090139,600.0,8.191e-05,2]
[419087631,1774858092725,458.18,8.369e-05,2]
[419087632,1774858116385,3726.32,8.219e-05,2]
[419087633,1774858145100,158.0,8.219e-05,3]
[419087634,1774858156451,900.0,7.81e-05,2]
[419087635,1774858156993,700.0,8.488e-05,2]
[419087636,1774858179915,500.0,8.419e-05,2]
[419087637,1774858188803,393.91202793,7.888e-05,2]
[419087638,1774858192113,177.01,6.346e-05,2]
[419087639,1774858209193,158.0,6.346e-05,3]
[419087653,1774858232832,-600.0,8.519e-05,2]
[419087654,1774858232842,-239.0,8.519e-05,2]
[419087655,1774858232852,-96.46,8.519e-05,2]
[419087656,1774858232908,-1070.49194,8.519e-05,2]
[419087657,1774858232920,-1350.31,8.519e-05,2]
[419087658,1774858232944,-938.55,8.519e-05,2]
[419087659,1774858232993,-1544.18806,8.519e-05,2]
[419087660,1774858233004,-150.0,8.519e-05,2]
[419087661,1774858233014,-150.0,8.519e-05,2]
[419087662,1774858233024,-898.15583886,8.52e-05,2]
[419087663,1774858233034,-197.786,8.52e-05,2]
[419087664,1774858233044,-50000.0,8.52e-05,2]
[419087665,1774858233055,-150.0,8.559e-05,2]
[419087666,1774858233064,-300.0,8.559e-05,2]
[419087667,1774858233075,-2000.0,8.56e-05,2]
[419087668,1774858233085,-447.0,8.562e-05,2]
[419087669,1774858233106,-2100.0,8.563e-05,2]
[419087670,1774858233117,-1802.39,8.575e-05,2]
[419087671,1774858233127,-300.0,8.592e-05,2]
[419087672,1774858233137,-2500.0,8.593e-05,2]
[419087673,1774858233147,-3869.56401357,8.647e-05,2]
[419087674,1774858233157,-415.31553778,8.648e-05,2]
[419087675,1774858233167,-50000.0,8.648e-05,2]
[419087676,1774858233177,-500.0,8.673e-05,2]
[419087677,1774858233187,-549.26906616,8.673e-05,2]
[419087678,1774858233198,-500.0,8.673e-05,2]
[419087679,1774858233209,-299.99,8.673e-05,2]
[419087680,1774858233218,-2457.55,8.673e-05,2]
[419087681,1774858233228,-9999.99,8.673e-05,2]
[419087682,1774858233238,-5942.15,8.673e-05,2]
[419087683,1774858233249,-150.99,8.673e-05,2]
[419087684,1774858233259,-504.76656967,8.673e-05,2]
[419087685,1774858233268,-460.50027844,8.673e-05,2]
[419087686,1774858233278,-503.89992989,8.673e-05,2]
[419087687,1774858233288,-153.72937199,8.673e-05,2]
[419087688,1774858233298,-1089.0,8.673e-05,2]
[419087689,1774858233308,-2640.39,8.688e-05,2]
[419087690,1774858233318,-1924.72,8.688e-05,2]
[419087691,1774858233328,-1560.46,8.693e-05,2]
[419087692,1774858233338,-4148.0,8.693e-05,2]
[419087693,1774858233349,-8456.92,8.693e-05,2]
[419087694,1774858233361,-150.99,8.693e-05,2]
[419087695,1774858233370,-986.88905897,8.693e-05,2]
[419087696,1774858233382,-986.88905897,8.693e-05,2]
[419087697,1774858233393,-986.88905897,8.693e-05,2]
[419087698,1774858233403,-986.88905897,8.693e-05,2]
[419087699,1774858233415,-986.88905897,8.693e-05,2]
[419087700,1774858233426,-986.88905897,8.693e-05,2]
[419087701,1774858233436,-986.88905897,8.693e-05,2]
[419087702,1774858233445,-986.88905897,8.693e-05,2]
[419087703,1774858233455,-986.88905897,8.693e-05,2]
[419087704,1774858233466,-986.88905897,8.693e-05,2]
[419087705,1774858233475,-986.88905897,8.693e-05,2]
[419087706,1774858233485,-986.88905897,8.693e-05,2]
[419087707,1774858233496,-986.88905897,8.693e-05,2]
[419087708,1774858233506,-986.88905897,8.693e-05,2]
[419087709,1774858233516,-986.88905897,8.693e-05,2]
[419087710,1774858233527,-986.88905897,8.693e-05,2]
[419087711,1774858233537,-986.88905897,8.693e-05,2]
[419087712,1774858233547,-986.88905897,8.693e-05,2]
[419087713,1774858233558,-986.88905897,8.693e-05,2]
[419087714,1774858233568,-986.88905897,8.693e-05,2]
[419087715,1774858233578,-986.88905897,8.693e-05,2]
[419087716,1774858233588,-986.88905897,8.693e-05,2]
[419087717,1774858233598,-986.88905897,8.693e-05,2]
[419087718,1774858233608,-986.88905897,8.693e-05,2]
[419087719,1774858233623,-986.88905897,8.693e-05,2]
[419087720,1774858233635,-986.88905897,8.693e-05,2]
[419087721,1774858233646,-986.88905897,8.693e-05,2]
[419087722,1774858233657,-986.88905897,8.693e-05,2]
[419087723,1774858233667,-986.88905897,8.693e-05,2]
[419087724,1774858233678,-986.88905897,8.693e-05,2]
[419087725,1774858233688,-986.88905897,8.693e-05,2]
[419087726,1774858233699,-986.88905897,8.693e-05,2]
[419087727,1774858233710,-986.88905897,8.693e-05,2]
[419087728,1774858233721,-986.88905897,8.693e-05,2]
[419087729,1774858233731,-273.0628458,8.693e-05,2]
[419087730,1774858233742,-985.09471523,8.693e-05,2]
[419087731,1774858233752,-985.09471523,8.693e-05,2]
[419087732,1774858233763,-985.09471523,8.693e-05,2]
[419087733,1774858233774,-985.09471523,8.693e-05,2]
[419087734,1774858233786,-985.09471523,8.693e-05,2]
[419087735,1774858233797,-985.09471523,8.693e-05,2]
[419087736,1774858233808,-985.09471523,8.693e-05,2]
[419087737,1774858233819,-985.09471523,8.693e-05,2]
[419087738,1774858233831,-985.09471523,8.693e-05,2]
[419087739,1774858233843,-985.09471523,8.693e-05,2]
[419087740,1774858233854,-985.09471523,8.693e-05,2]
[419087741,1774858233864,-985.09471523,8.693e-05,2]
[419087742,1774858233875,-985.09471523,8.693e-05,2]
[419087743,1774858233885,-985.09471523,8.693e-05,2]
[419087744,1774858233895,-985.09471523,8.693e-05,2]
[419087745,1774858233906,-985.09471523,8.693e-05,2]
[419087746,1774858233917,-985.09471523,8.693e-05,2]
[419087747,1774858233927,-985.09471523,8.693e-05,2]
[419087748,1774858233938,-985.09471523,8.693e-05,2]
[419087749,1774858233949,-985.09471523,8.693e-05,2]
[419087750,1774858233959,-985.09471523,8.693e-05,2]
[419087751,1774858233970,-985.09471523,8.693e-05,2]
[419087752,1774858233980,-985.09471523,8.693e-05,2]
[419087753,1774858233990,-985.09471523,8.693e-05,2]
[419087754,1774858234002,-985.09471523,8.693e-05,2]
[419087755,1774858234012,-985.09471523,8.693e-05,2]
[419087756,1774858234024,-985.09471523,8.693e-05,2]
[419087757,1774858234035,-985.09471523,8.693e-05,2]
[419087758,1774858234046,-985.09471523,8.693e-05,2]
[419087759,1774858234056,-985.09471523,8.693e-05,2]
[419087760,1774858234067,-985.09471523,8.693e-05,2]
[419087761,1774858234078,-347.40901381,8.693e-05,2]
[419087762,1774858234090,-580.76227426,8.693e-05,2]
[419087763,1774858234100,-351.2913277,8.693e-05,2]
[419087764,1774858234111,-957.30999248,8.693e-05,2]
[419087765,1774858234122,-957.30999248,8.693e-05,2]
[419087766,1774858234133,-957.30999248,8.693e-05,2]
[419087767,1774858234150,-957.30999248,8.693e-05,2]
[419087768,1774858234161,-957.30999248,8.693e-05,2]
[419087769,1774858234173,-957.30999248,8.693e-05,2]
[419087770,1774858234183,-957.30999248,8.693e-05,2]
[419087771,1774858234195,-957.30999248,8.693e-05,2]
[419087772,1774858234206,-957.30999248,8.693e-05,2]
[419087773,1774858234218,-957.30999248,8.693e-05,2]
[419087774,1774858234229,-957.30999248,8.693e-05,2]
[419087775,1774858234240,-957.30999248,8.693e-05,2]
[419087776,1774858234250,-957.30999248,8.693e-05,2]
[419087777,1774858234262,-957.30999248,8.693e-05,2]
[419087778,1774858234274,-957.30999248,8.693e-05,2]
[419087779,1774858234285,-957.30999248,8.693e-05,2]
[419087780,1774858234296,-957.30999248,8.693e-05,2]
[419087781,1774858234307,-957.30999248,8.693e-05,2]
[419087782,1774858234318,-957.30999248,8.693e-05,2]
[419087783,1774858234330,-957.30999248,8.693e-05,2]
[419087784,1774858234341,-957.30999248,8.693e-05,2]
[419087785,1774858234354,-957.30999248,8.693e-05,2]
[419087786,1774858234365,-500.0,8.693e-05,2]
[419087787,1774858234377,-500.0,8.693e-05,2]
[419087788,1774858234387,-500.0,8.693e-05,2]
[419087789,1774858234398,-250.0,8.693e-05,2]
[419087790,1774858234410,-500.0,8.693e-05,2]
[419087791,1774858234421,-1099.13369509,8.693e-05,2]
[419087792,1774858234431,-1099.13369509,8.693e-05,2]
[419087793,1774858234441,-1099.13369509,8.693e-05,2]
[419087794,1774858234452,-1099.13369509,8.693e-05,2]
[419087795,1774858234462,-1099.13369509,8.693e-05,2]
[419087796,1774858234473,-1099.13369507,8.693e-05,2]
[419087797,1774858234483,-24601.7292,8.694e-05,2]
[419087798,1774858234494,-1500000.0,8.694e-05,2]
[419087799,1774858234505,-660.0,8.728e-05,2]
[419087800,1774858234515,-2550.0,8.759e-05,2]
[419087801,1774858234526,-2280.0,8.779e-05,2]
[419087802,1774858234540,-804.0,8.782e-05,2]
[419087803,1774858234551,-1620.0,8.825e-05,2]
[419087804,1774858234562,-1300.0,8.976e-05,2]
[419087805,1774858234573,-1868.11,8.99e-05,2]
[419087806,1774858234584,-2640.39,8.998e-05,2]
[419087807,1774858234595,-829.57,9.059e-05,2]
[419087808,1774858234605,-2500.0,9.14e-05,2]
[419087809,1774858234616,-1084.85,9.151e-05,2]
[419087810,1774858234627,-593.83,9.197e-05,2]
[419087811,1774858234638,-500.63749024,9.221e-05,2]
[419087812,1774858234649,-500.36907193,9.221e-05,2]
[419087813,1774858234660,-1990.0,9.231e-05,2]
[419087814,1774858234671,-900.0,9.297e-05,2]
[419087815,1774858234682,-150.0,9.3e-05,2]
[419087816,1774858234693,-2640.39,9.308e-05,2]
[419087817,1774858234704,-1600.0,9.353e-05,2]
[419087818,1774858234715,-250.0,9.354e-05,2]
[419087819,1774858234725,-1157.90547016,9.37e-05,2]
[419087820,1774858234735,-250.0,9.37e-05,2]
[419087821,1774858234746,-5000.0,9.37e-05,2]
[419087822,1774858234757,-168.9529332,9.371e-05,2]
[419087823,1774858234767,-250.0,9.372e-05,2]
[419087824,1774858234777,-1000.0,9.387e-05,2]
[419087825,1774858234788,-255.0,9.415e-05,2]
[419087826,1774858234798,-300.0,9.415e-05,2]
[419087827,1774858234808,-500.0,9.474e-05,2]
[419087828,1774858234818,-500.0,9.474e-05,2]
[419087829,1774858234829,-500.0,9.474e-05,2]
[419087830,1774858234840,-500.0,9.474e-05,2]
[419087831,1774858234850,-500.0,9.474e-05,2]
[419087832,1774858234861,-500.0,9.474e-05,2]
[419087833,1774858234871,-500.0,9.474e-05,2]
[419087834,1774858234881,-500.0,9.474e-05,2]
[419087835,1774858234891,-500.0,9.474e-05,2]
[419087836,1774858234901,-500.0,9.474e-05,2]
[419087837,1774858234912,-500.0,9.474e-05,2]
[419087838,1774858234922,-500.0,9.474e-05,2]
[419087839,1774858234933,-500.0,9.474e-05,2]
[419087840,1774858234944,-500.0,9.474e-05,2]
[419087841,1774858234954,-472.63857322,9.474e-05,2]
[419087842,1774858234965,-500.0,9.474e-05,2]
[419087843,1774858234977,-500.0,9.474e-05,2]
[419087844,1774858234988,-500.0,9.474e-05,2]
[419087845,1774858234998,-151.0,9.474e-05,2]
[419087846,1774858235008,-500.0,9.474e-05,2]
[419087847,1774858235021,-174.61919141,9.474e-05,2]
[419087848,1774858235031,-250.0,9.474e-05,2]
[419087849,1774858235042,-250.0,9.474e-05,2]
[419087850,1774858235053,-250.0,9.474e-05,2]
[419087851,1774858235063,-250.0,9.474e-05,2]
[419087852,1774858235073,-250.0,9.474e-05,2]
[419087853,1774858235083,-250.0,9.474e-05,2]
[419087854,1774858235094,-250.0,9.474e-05,2]
[419087855,1774858235104,-250.0,9.474e-05,2]
[419087856,1774858235116,-250.0,9.474e-05,2]
[419087857,1774858235126,-250.0,9.474e-05,2]
[419087858,1774858235137,-250.0,9.474e-05,2]
[419087859,1774858235148,-45243.1679259,9.5e-05,3]
[419087860,1774858235158,-177.01,9.518e-05,2]
[419087861,1774858235172,-500.0,9.529e-05,2]
[419087862,1774858235183,-151.0,9.529e-05,2]
[419087863,1774858235193,-1901.16,9.571e-05,2]
[419087864,1774858235204,-500.0,9.584e-05,2]
[419087865,1774858235214,-151.0,9.584e-05,2]
[419087866,1774858235225,-2640.39,9.619e-05,2]
[419087867,1774858235236,-2000.0,9.63e-05,2]
[419087868,1774858235246,-500.0,9.639e-05,2]
[419087869,1774858235258,-151.0,9.639e-05,2]
[419087870,1774858235268,-29999.99,9.67e-05,2]
[419087871,1774858235278,-500.0,9.694e-05,2]
[419087872,1774858235289,-151.0,9.694e-05,2]
[419087873,1774858235300,-500.0,9.749e-05,2]
[419087874,1774858235311,-151.0,9.749e-05,2]
[419087875,1774858235322,-500.0,9.804e-05,2]
[419087876,1774858235335,-151.0,9.804e-05,2]
[419087877,1774858235345,-500.0,9.859e-05,2]
[419087878,1774858235355,-151.0,9.859e-05,2]
[419087879,1774858235377,-500.0,9.914e-05,2]
[419087880,1774858235390,-151.0,9.914e-05,2]
[419087881,1774858235400,-2640.39,9.929e-05,2]
[419087882,1774858235411,-500.0,9.969e-05,2]
[419087883,1774858235421,-151.0,9.969e-05,2]
[419087884,1774858235432,-151.0,0.0001,2]
[419087885,1774858235443,-500.0,0.0001,2]
[419087886,1774858235454,-500.0,0.0001,2]
[419087887,1774858235464,-500.0,0.0001,2]
[419087888,1774858235475,-500.0,0.0001,2]
[419087889,1774858235486,-500.0,0.0001,2]
[419087890,1774858235496,-500.0,0.0001,2]
[419087891,1774858235506,-500.0,0.0001,2]
[419087892,1774858235517,-500.0,0.0001,2]
[419087893,1774858235528,-500.0,0.0001,2]
[419087894,1774858235539,-500.0,0.0001,2]
[419087895,1774858235549,-500.0,0.0001,2]
[419087896,1774858235560,-151.0,0.0001,2]
[419087897,1774858235570,-151.0,0.0001,2]
[419087898,1774858235580,-151.0,0.0001,2]
[419087899,1774858235591,-151.0,0.0001,2]
[419087900,1774858235602,-151.0,0.0001,2]
[419087901,1774858235614,-151.0,0.0001,2]
[419087902,1774858235625,-151.0,0.0001,2]
[419087903,1774858235635,-151.0,0.0001,2]
[419087904,1774858235646,-151.0,0.0001,2]
[419087905,1774858235657,-151.0,0.0001,2]
[419087906,1774858235667,-151.0,0.0001,2]
[419087907,1774858235679,-181.08010149,0.00010022,2]
[419087908,1774858235690,-500.0,0.00010024,2]
[419087909,1774858235701,-151.0,0.00010024,2]
[419087910,1774858235711,-2640.39,0.00010239,2]
[419087911,1774858235721,-433.0,0.00010357,2]
[419087912,1774858235731,-151.0,0.00010475,2]
[419087913,1774858235741,-151.0,0.00010475,2]
[419087914,1774858235752,-151.0,0.00010475,2]
[419087915,1774858235763,-500.0,0.00010475,2]
[419087916,1774858235773,-2640.39,0.0001055,2]
[419087917,1774858235783,-187.78006525,0.0001057,2]
[419087918,1774858235794,-500.0,0.00010685,2]
[419087919,1774858235805,-2000.0,0.000107,2]
[419087920,1774858235815,-583.0,0.00010712,2]
[419087921,1774858235825,-196.7374,0.000108,7]
[419087922,1774858235836,-2640.39,0.0001086,2]
[419087923,1774858235846,-150.0,0.00010959,2]
[419087924,1774858235856,-166.66,0.00010959,2]
[419087925,1774858235867,-166.66,0.00011068,2]
[419087926,1774858235877,-278.43067603,0.00011099,2]
[419087927,1774858235888,-278.43067601,0.00011099,2]
[419087928,1774858235899,-278.43067601,0.00011099,2]
[419087929,1774858235909,-278.43067601,0.00011099,2]
[419087930,1774858235919,-194.72792766,0.00011118,2]
[419087931,1774858235930,-2640.39,0.0001117,2]
[419087932,1774858235940,-166.66,0.00011178,2]
[419087933,1774858235950,-166.66,0.00011288,2]
[419087934,1774858235960,-166.66,0.00011397,2]
[419087935,1774858235970,-2640.39,0.0001148,2]
[419087936,1774858235980,-166.66,0.00011507,2]
[419087937,1774858235991,-1712.64,0.00011507,2]
[419087938,1774858236002,-3726.32,0.00011507,2]
[419087939,1774858236012,-201.93286099,0.00011666,2]
[419087940,1774858236023,-2000.0,0.0001177,2]
[419087941,1774858236033,-2640.39,0.00011791,2]
[419087942,1774858236044,-278.43067601,0.0001186,2]
[419087943,1774858236058,-1500.0,0.00012118,2]
[419087944,1774858236069,-158.0,0.00012137,3]
[419087945,1774858236080,-209.40437684,0.00012214,2]
[419087946,1774858236090,-258.0375,0.000123,12]
[419087947,1774858236101,-278.43067601,0.00012668,2]
[419087948,1774858236111,-217.15233878,0.00012762,2]
[419087949,1774858236121,-2000.0,0.0001284,2]
[419087950,1774858236131,-160.0,0.0001286,2]
[419087951,1774858236141,-160.0,0.0001286,2]
[419087952,1774858236151,-250.0,0.00013,2]
[419087953,1774858236162,-200.0,0.00013151,5]
[419087954,1774858236172,-200.0,0.00013151,5]
[419087955,1774858236183,-200.0,0.00013151,5]
[419087956,1774858236194,-200.0,0.00013151,5]
[419087957,1774858236205,-200.0,0.00013151,5]
[419087958,1774858236216,-200.0,0.00013151,5]
[419087959,1774858236227,-200.0,0.00013151,5]
[419087960,1774858236238,-200.0,0.00013151,5]
[419087961,1774858236249,-200.0,0.00013151,5]
[419087962,1774858236259,-200.0,0.00013151,5]
[419087963,1774858236270,-200.0,0.00013151,5]
[419087964,1774858236281,-200.0,0.00013151,5]
[419087965,1774858236291,-200.0,0.00013151,5]
[419087966,1774858236302,-200.0,0.00013151,5]
[419087967,1774858236312,-200.0,0.00013151,5]
[419087968,1774858236322,-200.0,0.00013151,5]
[419087969,1774858236332,-200.0,0.00013151,5]
[419087970,1774858236342,-200.0,0.00013151,5]
[419087971,1774858236353,-200.0,0.00013151,5]
[419087972,1774858236364,-200.0,0.00013151,5]
[419087973,1774858236374,-200.0,0.00013151,5]
[419087974,1774858236384,-200.0,0.00013151,5]
[419087975,1774858236395,-200.0,0.00013151,5]
[419087976,1774858236405,-200.0,0.00013151,5]
[419087977,1774858236416,-200.0,0.00013151,5]
[419087978,1774858236426,-200.0,0.00013151,5]
[419087979,1774858236438,-200.0,0.00013151,5]
[419087980,1774858236449,-200.0,0.00013151,5]
[419087981,1774858236461,-200.0,0.00013151,5]
[419087982,1774858236471,-200.0,0.00013151,5]
[419087983,1774858236481,-200.0,0.00013151,5]
[419087984,1774858236494,-200.0,0.00013151,5]
[419087985,1774858236504,-200.0,0.00013151,5]
[419087986,1774858236515,-200.0,0.00013151,5]
[419087987,1774858236526,-200.0,0.00013151,5]
[419087988,1774858236536,-200.0,0.00013151,5]
[419087989,1774858236547,-200.0,0.00013151,5]
[419087990,1774858236557,-200.0,0.00013151,5]
[419087991,1774858236568,-200.0,0.00013151,5]
[419087992,1774858236580,-345.992822,0.00013151,5]
[419087993,1774858236592,-151.0,0.00013151,2]
[419087994,1774858236602,-151.0,0.00013151,2]
[419087995,1774858236614,-151.0,0.00013151,2]
[419087996,1774858236625,-225.18697532,0.0001331,2]
[419087997,1774858236635,-278.43067601,0.00013476,2]
[419087998,1774858236645,-1096.0,0.00013499,5]
[419087999,1774858236655,-33011.0301,0.000136,2]
[419088000,1774858236665,-1000.0,0.000136,2]
[419088001,1774858236675,-500.0,0.00013698,2]
[419088002,1774858236685,-151.0,0.00013699,2]
[419088003,1774858236695,-151.0,0.00013699,2]
[419088004,1774858236705,-151.0,0.00013699,2]
[419088005,1774858236715,-151.0,0.00013699,2]
[419088006,1774858236726,-830.43,0.000137,2]
[419088007,1774858236737,-830.43,0.000137,2]
[419088008,1774858236747,-830.43,0.000137,2]